fUSD/lending_fUSD_20240409
["ID","MTS","AMOUNT","RATE_DAILY","PERIOD"]
[321962601,1712651467275,-293.39309159,0.00021369,2]
[321962602,1712651467284,-500.0,0.00021369,2]
[321962603,1712651467294,-500.0,0.00021369,2]
[321962604,1712651467304,-1052.26702509,0.00021369,2]
[321962605,1712651467316,-116.13297491,0.00021369,2]
[321962606,1712651467326,-618.74,0.00021369,2]
[321962607,1712651467335,-687.7,0.00021369,2]
[321962608,1712651467345,-500.0,0.00021369,2]
[321962609,1712651467354,-1055.1,0.00021369,2]
[321962610,1712651467364,-500.0,0.00021369,2]
[321962611,1712651467374,-500.0,0.00021369,2]
[321962612,1712651467385,-500.0,0.00021369,2]
[321962613,1712651467395,-500.0,0.00021369,2]
[321962614,1712651467404,-500.0,0.00021369,2]
[321962615,1712651467414,-445.75642509,0.00021369,2]
[321962616,1712651467426,-54.24357491,0.00021369,2]
[321962617,1712651467437,-264.81642509,0.00021369,2]
[321962618,1712651468487,-500.0,0.00021095,2]
[321962619,1712651468498,-456.04357491,0.00021369,2]
[321962620,1712651468509,-1206.28,0.00021369,2]
[321962621,1712651468520,-500.0,0.00021369,2]
[321962622,1712651468530,-155.50765965,0.00021369,2]
[321962623,1712651468539,-500.0,0.00021369,2]
[321962624,1712651468549,-769.91,0.00021369,2]
[321962625,1712651468560,-500.0,0.00021369,2]
[321962626,1712651468570,-694.96,0.00021369,2]
[321962627,1712651468579,-500.0,0.00021369,2]
[321962628,1712651468589,-500.0,0.00021369,2]
[321962629,1712651468599,-500.0,0.00021369,2]
[321962630,1712651468609,-500.0,0.00021369,2]
[321962631,1712651468620,-500.0,0.00021369,2]
[321962632,1712651468630,-699.63,0.00021369,2]
[321962633,1712651468641,-1388.73,0.00021369,2]
[321962634,1712651468651,-310.39857648,0.00021369,2]
[321962635,1712651468662,-500.0,0.00021369,2]
[321962636,1712651468672,-500.0,0.00021369,2]
[321962637,1712651468681,-500.0,0.00021369,2]
[321962638,1712651468691,-2232.19,0.00021369,2]
[321962639,1712651468700,-500.0,0.00021369,2]
[321962640,1712651468712,-500.0,0.00021369,2]
[321962641,1712651468722,-1111.51,0.00021369,2]
[321962642,1712651468731,-500.0,0.00021369,2]
[321962643,1712651468741,-945.38,0.00021369,2]
[321962644,1712651468751,-857.06,0.00021369,2]
[321962645,1712651468761,-500.0,0.00021369,2]
[321962646,1712651468770,-500.0,0.00021369,2]
[321962647,1712651468780,-1359.33,0.00021369,2]
[321962648,1712651468790,-500.0,0.00021369,2]
[321962649,1712651468799,-500.0,0.00021369,2]
[321962650,1712651468809,-500.0,0.00021369,2]
[321962651,1712651468819,-1400.87,0.00021369,2]
[321962652,1712651468828,-1428.27,0.00021369,2]
[321962653,1712651468837,-500.0,0.00021369,2]
[321962654,1712651468846,-500.0,0.00021369,2]
[321962655,1712651468856,-299.32613067,0.00021369,2]
[321962656,1712651468865,-500.0,0.00021369,2]
[321962657,1712651468875,-500.0,0.00021369,2]
[321962658,1712651468884,-1464.53,0.00021369,2]
[321962659,1712651468893,-7.67405829,0.00021369,2]
[321962660,1712651468906,-492.32594171,0.00021369,2]
[321962661,1712651468916,-849.51,0.00021369,2]
[321962662,1712651468925,-733.15,0.00021369,2]
[321962663,1712651468934,-500.0,0.00021369,2]
[321962664,1712651468943,-1860.17,0.00021369,2]
[321962665,1712651468955,-1824.27,0.00021369,2]
[321962666,1712651468965,-1509.23,0.00021369,2]
[321962667,1712651468974,-1418.94,0.00021369,2]
[321962668,1712651468983,-500.0,0.00021369,2]
[321962669,1712651468992,-1337.33,0.00021369,2]
[321962670,1712651469001,-1061.23,0.00021369,2]
[321962671,1712651469011,-500.0,0.00021369,2]
[321962672,1712651469021,-1041.57,0.00021369,2]
[321962673,1712651469031,-743.14,0.00021369,2]
[321962674,1712651469042,-2325.56,0.00021369,2]
[321962675,1712651469051,-2502.75,0.00021369,2]
[321962676,1712651469061,-500.0,0.00021369,2]
[321962677,1712651469070,-655.03,0.00021369,2]
[321962678,1712651469080,-606.85,0.00021369,2]
[321962679,1712651469088,-500.0,0.00021369,2]
[321962680,1712651469098,-500.0,0.00021369,2]
[321962681,1712651469107,-500.0,0.00021369,2]
[321962682,1712651469116,-500.0,0.00021369,2]
[321962683,1712651469127,-890.3,0.00021369,2]
[321962684,1712651469137,-500.0,0.00021369,2]
[321962685,1712651469147,-500.0,0.00021369,2]
[321962686,1712651469156,-1849.2,0.00021369,2]
[321962687,1712651469166,-500.0,0.00021369,2]
[321962688,1712651469175,-2717.93,0.00021369,2]
[321962689,1712651469189,-500.0,0.00021369,2]
[321962690,1712651469198,-9552.43,0.00021369,2]
[321962691,1712651469215,-1339.99,0.00021369,2]
[321962692,1712651469225,-772.31,0.00021369,2]
[321962693,1712651469235,-3281.38,0.00021369,2]
[321962694,1712651469245,-629.9,0.00021369,2]
[321962695,1712651469254,-500.0,0.00021369,2]
[321962696,1712651469266,-500.0,0.00021369,2]
[321962697,1712651469276,-500.0,0.00021369,2]
[321962698,1712651469286,-6237.11,0.00021369,2]
[321962699,1712651469295,-500.0,0.00021369,2]
[321962700,1712651469305,-818.27,0.00021369,2]
[321962701,1712651469314,-656.42,0.00021369,2]
[321962702,1712651469324,-8518.8,0.00021369,2]
[321962703,1712651469334,-715.37,0.00021369,2]
[321962704,1712651469343,-568.51,0.00021369,2]
[321962705,1712651469352,-1157.47,0.00021369,2]
[321962706,1712651469362,-1255.93,0.00021369,2]
[321962707,1712651469371,-500.0,0.00021369,2]
[321962708,1712651469380,-606.82,0.00021369,2]
[321962709,1712651469390,-500.0,0.00021369,2]
[321962710,1712651469400,-434.28249068,0.00021369,2]
[321962711,1712651469443,-984.75750932,0.00021369,2]
[321962712,1712651469454,-1347.79249068,0.00021369,2]
[321962713,1712651469502,-439.76750932,0.00021369,2]
[321962714,1712651469511,-2594.74624887,0.00021369,2]
[321962715,1712651469926,-0.08375113,0.00021369,2]
[321962716,1712651469935,-1693.25,0.00021369,2]
[321962717,1712651469944,-4451.91,0.00021369,2]
[321962718,1712651469955,-500.0,0.00021369,2]
[321962719,1712651469965,-500.0,0.00021369,2]
[321962720,1712651469974,-534.8,0.00021369,2]
[321962721,1712651469983,-2115.43,0.00021369,2]
[321962722,1712651469992,-500.0,0.00021369,2]
[321962723,1712651470002,-500.0,0.00021369,2]
[321962724,1712651470012,-736.12,0.00021369,2]
[321962725,1712651470022,-500.0,0.00021369,2]
[321962726,1712651470032,-1674.27,0.00021369,2]
[321962727,1712651470042,-500.0,0.00021369,2]
[321962728,1712651470051,-500.0,0.00021369,2]
[321962729,1712651470060,-500.0,0.00021369,2]
[321962730,1712651470071,-1535.55351738,0.00021369,2]
[321962731,1712651470145,-307.44854805,0.00021369,2]
[321962732,1712651470159,-1072.11793457,0.00021369,2]
[321962733,1712651470170,-646.56091365,0.00021369,2]
[321962734,1712651470431,-8600.34908635,0.00021369,2]
[321962735,1712651470441,-500.0,0.00021369,2]
[321962736,1712651470450,-656.81,0.00021369,2]
[321962737,1712651470461,-2036.08,0.00021369,2]
[321962738,1712651470471,-373.52174079,0.00021369,2]
[321962739,1712651470482,-126.47825921,0.00021369,2]
[321962740,1712651470492,-178.13586095,0.00021369,2]
[321962741,1712651711241,291.63,0.00024329,15]
[321962742,1712652027028,2299.75,0.00019742,5]
[321962743,1712652046518,674.89,0.00017855,2]
[321962744,1712652111894,25000.0,0.0002651,18]
[321962745,1712652180148,273.4,0.00024329,15]
[321962746,1712652181255,25000.0,0.0002651,18]
[321962747,1712652225775,25000.0,0.0002651,18]
[321962748,1712652257753,1929.69188003,0.000297,120]
[321962749,1712652282745,150.637543,0.00025,10]
[321962750,1712652338112,20000.0,0.0002651,18]
[321962751,1712652341949,25000.0,0.0002651,18]
[321962752,1712652344858,150.0,0.00025,10]
[321962753,1712652386498,198.686022,0.00025,10]
[321962754,1712652402553,25000.0,0.0002651,18]
[321962755,1712652413351,150.0,0.00025,10]
[321962763,1712652458771,25000.0,0.0002651,18]
[321962764,1712652477725,12999.0,0.00025,10]
[321962765,1712652563594,11708.19847321,0.0002651,18]
[321962789,1712652631507,-809.38771434,0.00018065,2]
[321962790,1712652631519,-708.03062906,0.00018066,2]
[321962791,1712652631529,-157.92490406,0.00018101,2]
[321962792,1712652631540,-1860.620496,0.00018905,2]
[321962793,1712652631550,-1250.0,0.00019,3]
[321962794,1712652631560,-157.92490406,0.00019411,2]
[321962795,1712652631571,-2202.70360446,0.00019598,2]
[321962796,1712652631582,-285.8,0.00019599,2]
[321962797,1712652631592,-1000.0,0.00019599,2]
[321962798,1712652631602,-150.0,0.00019661,2]
[321962799,1712652631612,-500.0,0.00019662,2]
[321962800,1712652631622,-500.0,0.00019662,2]
[321962801,1712652631631,-515.62200495,0.00019662,2]
[321962802,1712652631641,-999.99,0.00019662,2]
[321962803,1712652631651,-1345.86,0.00019712,2]
[321962804,1712652631661,-897.55,0.00019801,2]
[321962805,1712652631670,-3703.29,0.00019801,2]
[321962806,1712652631679,-5289.0,0.0002,2]
[321962807,1712652631689,-674.89,0.00020119,2]
[321962808,1712652631698,-559.0,0.0002052,2]
[321962809,1712652631708,-522.0,0.00020547,2]
[321962810,1712652631718,-524.0,0.00020547,2]
[321962811,1712652631728,-1147.44629257,0.00020621,2]
[321962812,1712652631738,-7710.11905668,0.00020621,2]
[321962813,1712652631751,-825.50971405,0.00020621,2]
[321962814,1712652631765,-772.40742927,0.00020621,2]
[321962815,1712652631776,-157.040917,0.00020717,2]
[321962816,1712652631785,-157.040917,0.00020717,2]
[321962817,1712652631795,-157.040917,0.00020717,2]
[321962818,1712652631806,-157.040917,0.00020717,2]
[321962819,1712652631816,-157.040917,0.00020717,2]
[321962820,1712652631826,-1238.39699789,0.00020719,2]
[321962821,1712652631837,-404.56,0.0002072,2]
[321962822,1712652631847,-291.69951381,0.0002072,2]
[321962823,1712652631857,-1184.53988918,0.00020721,2]
[321962833,1712652632357,-155.0,0.00018064,2]
[321962834,1712652632370,-1545.22032289,0.00020721,2]
[321962835,1712652632379,-157.92490406,0.00020721,2]
[321962836,1712652632390,-344.3438387,0.00020721,2]
[321962837,1712652632401,-152.49152882,0.00020721,2]
[321962838,1712652632412,-1000.0,0.00020721,2]
[321962839,1712652632424,-114426.18394339,0.00020721,2]
[321962955,1712652638435,-455.11999984,0.00020721,2]
[321962958,1712652638450,-2500.39038756,0.00020721,2]
[321962960,1712652638462,-702.11,0.00020721,2]
[321962962,1712652638475,-4491.67907444,0.00020721,2]
[321963063,1712652639447,-122424.51659477,0.00020721,2]
[321963066,1712652639459,-500.0,0.00020758,2]
[321963068,1712652639470,-1015.0,0.000208,2]
[321963070,1712652639482,-697.46,0.00020817,2]
[321963072,1712652639496,-296.99587444,0.00020819,2]
[321963075,1712652639507,-704.31825497,0.00020819,2]
[321963077,1712652639519,-3374.18597777,0.00020819,2]
[321963079,1712652639529,-203.32322521,0.00020819,2]
[321963081,1712652639540,-661.78401527,0.0002082,2]
[321963083,1712652639550,-4465.75619085,0.0002082,2]
[321963085,1712652639562,-35165.94748153,0.0002082,2]
[321963087,1712652639574,-216.2239886,0.0002082,2]
[321963090,1712652639585,-1000.0,0.0002082,2]
[321963092,1712652639596,-155.23326997,0.0002082,2]
[321963094,1712652639607,-179.74353155,0.0002082,2]
[321963096,1712652639618,-500.0,0.0002082,2]
[321963098,1712652639628,-500.0,0.00020821,2]
[321963100,1712652639639,-503.56874434,0.00020821,2]
[321963103,1712652639650,-271.69600859,0.00020821,2]
[321963105,1712652639661,-512.72537211,0.00020821,2]
[321963107,1712652639671,-500.0,0.00020821,2]
[321963109,1712652639682,-500.0,0.00020821,2]
[321963111,1712652639693,-500.0,0.00020821,2]
[321963113,1712652639703,-500.0,0.00020821,2]
[321963116,1712652639714,-500.0,0.00020821,2]
[321963118,1712652639724,-500.0,0.00020821,2]
[321963120,1712652639735,-500.0,0.00020821,2]
[321963122,1712652639745,-500.0,0.00020821,2]
[321963124,1712652639756,-500.0,0.00020821,2]
[321963126,1712652639768,-500.0,0.00020821,2]
[321963129,1712652639778,-587.01449229,0.00020821,2]
[321963131,1712652639788,-502.14615606,0.00020821,2]
[321963133,1712652639799,-501.64135127,0.00020821,2]
[321963135,1712652639810,-500.0,0.00020821,2]
[321963137,1712652639821,-370.99988758,0.00020821,2]
[321963139,1712652639832,-500.0,0.00020821,2]
[321963141,1712652639843,-500.0,0.00020821,2]
[321963143,1712652639854,-501.27932061,0.00020821,2]
[321963146,1712652639865,-503.23459008,0.00020821,2]
[321963148,1712652639875,-501.17935228,0.00020821,2]
[321963150,1712652639886,-161.37248686,0.00020821,2]
[321963152,1712652639896,-501.29884867,0.00020821,2]
[321963155,1712652639907,-501.58790386,0.00020821,2]
[321963157,1712652639917,-174.31196575,0.00020821,2]
[321963160,1712652639927,-551.86,0.00020821,2]
[321963162,1712652639937,-517.68,0.00020821,2]
[321963165,1712652639948,-500.0,0.00020821,2]
[321963167,1712652639960,-643.99,0.00020821,2]
[321963169,1712652639970,-500.0,0.00020821,2]
[321963171,1712652639980,-266.99693739,0.00020821,2]
[321963173,1712652639990,-500.0,0.00020821,2]
[321963175,1712652640000,-500.0,0.00020821,2]
[321963177,1712652640011,-500.0,0.00020821,2]
[321963180,1712652640022,-500.0,0.00020821,2]
[321963182,1712652640032,-500.0,0.00020821,2]
[321963184,1712652640043,-500.0,0.00020821,2]
[321963186,1712652640053,-500.0,0.00020821,2]
[321963188,1712652640063,-500.0,0.00020821,2]
[321963190,1712652640073,-500.0,0.00020821,2]
[321963192,1712652640084,-500.0,0.00020821,2]
[321963194,1712652640094,-644.5,0.00020821,2]
[321963196,1712652640103,-500.0,0.00020821,2]
[321963198,1712652640114,-500.0,0.00020821,2]
[321963200,1712652640124,-500.0,0.00020821,2]
[321963203,1712652640134,-967.25,0.00020821,2]
[321963205,1712652640144,-500.0,0.00020821,2]
[321963207,1712652640154,-500.0,0.00020821,2]
[321963209,1712652640165,-500.0,0.00020821,2]
[321963211,1712652640176,-500.0,0.00020821,2]
[321963213,1712652640186,-500.0,0.00020821,2]
[321963215,1712652640198,-500.0,0.00020821,2]
[321963217,1712652640208,-547.84,0.00020821,2]
[321963220,1712652640218,-500.0,0.00020821,2]
[321963222,1712652640228,-500.0,0.00020821,2]
[321963224,1712652640239,-500.0,0.00020821,2]
[321963226,1712652640249,-529.73401333,0.00020821,2]
[321963228,1712652640260,-500.0,0.00020821,2]
[321963230,1712652640271,-526.96,0.00020821,2]
[321963232,1712652640282,-500.0,0.00020821,2]
[321963234,1712652640292,-372.99419709,0.00020821,2]
[321963237,1712652640303,-562.73376888,0.00020821,2]
[321963239,1712652640313,-500.0,0.00020821,2]
[321963241,1712652640323,-500.0,0.00020821,2]
[321963243,1712652640334,-1530.13,0.00020821,2]
[321963245,1712652640345,-686.52,0.00020821,2]
[321963246,1712652640354,-500.0,0.00020821,2]
[321963248,1712652640364,-500.0,0.00020821,2]
[321963250,1712652640375,-855.5,0.00020821,2]
[321963252,1712652640385,-500.0,0.00020821,2]
[321963254,1712652640396,-500.0,0.00020821,2]
[321963256,1712652640406,-500.0,0.00020821,2]
[321963257,1712652640416,-500.0,0.00020821,2]
[321963259,1712652640426,-500.0,0.00020821,2]
[321963261,1712652640437,-500.0,0.00020821,2]
[321963263,1712652640447,-500.0,0.00020821,2]
[321963265,1712652640457,-797.71,0.00020821,2]
[321963267,1712652640468,-500.0,0.00020821,2]
[321963268,1712652640478,-500.0,0.00020821,2]
[321963270,1712652640488,-827.2,0.00020821,2]
[321963272,1712652640499,-1254.68,0.00020821,2]
[321963274,1712652640509,-500.0,0.00020821,2]
[321963276,1712652640520,-500.0,0.00020821,2]
[321963278,1712652640532,-500.0,0.00020821,2]
[321963280,1712652640542,-500.0,0.00020821,2]
[321963282,1712652640551,-500.0,0.00020821,2]
[321963284,1712652640563,-612.17,0.00020821,2]
[321963286,1712652640575,-500.0,0.00020821,2]
[321963287,1712652640585,-928.58,0.00020821,2]
[321963289,1712652640595,-500.0,0.00020821,2]
[321963291,1712652640605,-500.0,0.00020821,2]
[321963293,1712652640615,-500.0,0.00020821,2]
[321963295,1712652640626,-500.0,0.00020821,2]
[321963297,1712652640636,-509.28696277,0.00020821,2]
[321963299,1712652640646,-500.0,0.00020821,2]
[321963301,1712652640657,-500.0,0.00020821,2]
[321963303,1712652640667,-500.0,0.00020821,2]
[321963304,1712652640677,-500.0,0.00020821,2]
[321963306,1712652640687,-500.0,0.00020821,2]
[321963308,1712652640698,-500.0,0.00020821,2]
[321963310,1712652640708,-500.0,0.00020821,2]
[321963312,1712652640718,-500.0,0.00020821,2]
[321963314,1712652640729,-505.99,0.00020821,2]
[321963316,1712652640739,-371.64893407,0.00020821,2]
[321963318,1712652640749,-500.0,0.00020821,2]
[321963320,1712652640759,-500.0,0.00020821,2]
[321963321,1712652640770,-500.0,0.00020821,2]
[321963323,1712652640780,-500.0,0.00020821,2]
[321963325,1712652640790,-500.0,0.00020821,2]
[321963327,1712652640799,-500.0,0.00020821,2]
[321963329,1712652640809,-500.0,0.00020821,2]
[321963331,1712652640820,-500.0,0.00020821,2]
[321963332,1712652640830,-500.0,0.00020821,2]
[321963334,1712652640840,-500.0,0.00020821,2]
[321963336,1712652640850,-500.0,0.00020821,2]
[321963338,1712652640860,-500.0,0.00020821,2]
[321963340,1712652640870,-500.0,0.00020821,2]
[321963342,1712652640880,-500.0,0.00020821,2]
[321963344,1712652640891,-500.0,0.00020821,2]
[321963346,1712652640901,-913.37,0.00020821,2]
[321963348,1712652640910,-500.0,0.00020821,2]
[321963350,1712652640920,-1234.16,0.00020821,2]
[321963352,1712652640931,-1717.41,0.00020821,2]
[321963354,1712652640940,-500.0,0.00020821,2]
[321963356,1712652640950,-911.37,0.00020821,2]
[321963357,1712652640960,-500.0,0.00020821,2]
[321963359,1712652640971,-608.79977183,0.00020821,2]
[321963361,1712652640981,-500.0,0.00020821,2]
[321963363,1712652640991,-500.0,0.00020821,2]
[321963365,1712652641001,-500.0,0.00020821,2]
[321963367,1712652641011,-690.26,0.00020821,2]
[321963369,1712652641021,-500.0,0.00020821,2]
[321963371,1712652641031,-673.2,0.00020821,2]
[321963373,1712652641042,-500.0,0.00020821,2]
[321963375,1712652641053,-625.95,0.00020821,2]
[321963377,1712652641063,-646.20492951,0.00020821,2]
[321963379,1712652641073,-515.09,0.00020821,2]
[321963381,1712652641083,-1371.72,0.00020821,2]
[321963383,1712652641094,-1163.37,0.00020821,2]
[321963385,1712652641104,-555.77,0.00020821,2]
[321963387,1712652641114,-500.0,0.00020821,2]
[321963389,1712652641124,-500.0,0.00020821,2]
[321963390,1712652641135,-500.0,0.00020821,2]
[321963392,1712652641145,-879.5,0.00020821,2]
[321963394,1712652641155,-500.0,0.00020821,2]
[321963396,1712652641166,-868.0,0.00020821,2]
[321963398,1712652641177,-500.0,0.00020821,2]
[321963400,1712652641187,-500.0,0.00020821,2]
[321963402,1712652641197,-500.0,0.00020821,2]
[321963404,1712652641207,-500.0,0.00020821,2]
[321963406,1712652641218,-1301.51,0.00020821,2]
[321963408,1712652641228,-204.8238772,0.00020821,2]
[321963410,1712652641238,-500.0,0.00020821,2]
[321963412,1712652641248,-500.0,0.00020821,2]
[321963414,1712652641259,-500.0,0.00020821,2]
[321963416,1712652641270,-500.0,0.00020821,2]
[321963418,1712652641280,-704.13,0.00020821,2]
[321963420,1712652641291,-500.0,0.00020821,2]
[321963422,1712652641301,-588.44,0.00020821,2]
[321963423,1712652641312,-220.75921075,0.00020821,2]
[321963495,1712652642139,-500.0,0.00020821,2]
[321963499,1712652642169,-500.0,0.00020821,2]
[321963502,1712652642191,-536.58,0.00020821,2]
[321963504,1712652642201,-2040.9,0.00020821,2]
[321963506,1712652642210,-739.98,0.00020821,2]
[321963509,1712652642220,-500.0,0.00020821,2]
[321963511,1712652642229,-500.0,0.00020821,2]
[321963512,1712652642239,-1723.9,0.00020821,2]
[321963515,1712652642248,-500.0,0.00020821,2]
[321963518,1712652642258,-500.0,0.00020821,2]
[321963521,1712652642269,-780.49,0.00020821,2]
[321963523,1712652642278,-1553.95,0.00020821,2]
[321963524,1712652642287,-500.0,0.00020821,2]
[321963526,1712652642297,-500.0,0.00020821,2]
[321963528,1712652642307,-500.0,0.00020821,2]
[321963532,1712652642317,-500.0,0.00020821,2]
[321963534,1712652642327,-500.0,0.00020821,2]
[321963536,1712652642337,-500.0,0.00020821,2]
[321963538,1712652642347,-1435.97,0.00020821,2]
[321963540,1712652642356,-1240.34,0.00020821,2]
[321963542,1712652642365,-1115.36,0.00020821,2]
[321963543,1712652642375,-500.0,0.00020821,2]
[321963545,1712652642385,-983.95,0.00020821,2]
[321963548,1712652642394,-500.0,0.00020821,2]
[321963550,1712652642403,-500.0,0.00020821,2]
[321963552,1712652642413,-1230.52,0.00020821,2]
[321963554,1712652642422,-198.72038485,0.00020821,2]
[321963556,1712652642432,-1440.01,0.00020821,2]
[321963558,1712652642442,-500.0,0.00020821,2]
[321963560,1712652642451,-500.0,0.00020821,2]
[321963562,1712652642461,-867.02,0.00020821,2]
[321963564,1712652642471,-930.46,0.00020821,2]
[321963566,1712652642481,-500.0,0.00020821,2]
[321963568,1712652642493,-500.0,0.00020821,2]
[321963569,1712652642502,-1279.26,0.00020821,2]
[321963571,1712652642512,-1068.18,0.00020821,2]
[321963573,1712652642523,-500.0,0.00020821,2]
[321963575,1712652642533,-500.0,0.00020821,2]
[321963576,1712652642543,-901.1,0.00020821,2]
[321963578,1712652642554,-500.0,0.00020821,2]
[321963580,1712652642565,-768.06,0.00020821,2]
[321963582,1712652642577,-500.0,0.00020821,2]
[321963584,1712652642589,-500.0,0.00020821,2]
[321963586,1712652642599,-718.5,0.00020821,2]
[321963589,1712652642611,-500.0,0.00020821,2]
[321963591,1712652642620,-1915.3,0.00020821,2]
[321963593,1712652642631,-500.0,0.00020821,2]
[321963595,1712652642641,-1427.26,0.00020821,2]
[321963597,1712652642652,-680.51,0.00020821,2]
[321963599,1712652642661,-500.0,0.00020821,2]
[321963600,1712652642671,-500.0,0.00020821,2]
[321963602,1712652642681,-1033.18,0.00020821,2]
[321963604,1712652642691,-791.92,0.00020821,2]
[321963606,1712652642700,-703.12,0.00020821,2]
[321963608,1712652642710,-500.0,0.00020821,2]
[321963610,1712652642719,-630.75,0.00020821,2]
[321963612,1712652642728,-1629.94,0.00020821,2]
[321963614,1712652642738,-500.0,0.00020821,2]
[321963616,1712652642747,-500.0,0.00020821,2]
[321963618,1712652642757,-1398.6,0.00020821,2]
[321963620,1712652642768,-541.4,0.00020821,2]
[321963623,1712652642777,-500.0,0.00020821,2]
[321963624,1712652642787,-500.0,0.00020821,2]
[321963626,1712652642796,-575.27509707,0.00020821,2]
[321963629,1712652642806,-500.0,0.00020821,2]
[321963630,1712652642815,-500.0,0.00020821,2]
[321963633,1712652642825,-500.0,0.00020821,2]
[321963634,1712652642835,-500.0,0.00020821,2]
[321963637,1712652642844,-500.0,0.00020821,2]
[321963638,1712652642854,-500.0,0.00020821,2]
[321963639,1712652642863,-500.0,0.00020821,2]
[321963640,1712652642873,-1189.42,0.00020821,2]
[321963641,1712652642882,-500.0,0.00020821,2]
[321963642,1712652642891,-1829.39,0.00020821,2]
[321963643,1712652642900,-221.33211258,0.00020821,2]
[321963644,1712652642909,-500.0,0.00020821,2]
[321963645,1712652642918,-500.0,0.00020821,2]
[321963646,1712652642928,-500.0,0.00020821,2]
[321963647,1712652642937,-500.0,0.00020821,2]
[321963648,1712652642946,-500.0,0.00020821,2]
[321963649,1712652642954,-1035.84,0.00020821,2]
[321963650,1712652642964,-500.0,0.00020821,2]
[321963651,1712652642973,-500.0,0.00020821,2]
[321963652,1712652642982,-502.27,0.00020821,2]
[321963653,1712652642992,-500.0,0.00020821,2]
[321963654,1712652643001,-1340.55,0.00020821,2]
[321963656,1712652643011,-161.92724744,0.00020821,2]
[321963658,1712652643021,-1596.23,0.00020821,2]
[321963660,1712652643033,-1320.57,0.00020821,2]
[321963662,1712652643042,-1225.76,0.00020821,2]
[321963664,1712652643052,-1016.31,0.00020821,2]
[321963666,1712652643061,-540.87,0.00020821,2]
[321963668,1712652643071,-264.49111229,0.00020821,2]
[321963670,1712652643080,-500.0,0.00020821,2]
[321963672,1712652643090,-500.0,0.00020821,2]
[321963674,1712652643099,-500.0,0.00020821,2]
[321963676,1712652643108,-750.6,0.00020821,2]
[321963678,1712652643117,-500.0,0.00020821,2]
[321963680,1712652643126,-1566.31,0.00020821,2]
[321963682,1712652643136,-2189.9,0.00020821,2]
[321963684,1712652643145,-1114.44,0.00020821,2]
[321963686,1712652643154,-1038.81,0.00020821,2]
[321963688,1712652643164,-1170.16,0.00020821,2]
[321963690,1712652643174,-910.95,0.00020821,2]
[321963692,1712652643183,-500.0,0.00020821,2]
[321963694,1712652643193,-500.0,0.00020821,2]
[321963696,1712652643201,-980.16,0.00020821,2]
[321963698,1712652643211,-1627.65,0.00020821,2]
[321963700,1712652643220,-500.0,0.00020821,2]
[321963702,1712652643229,-1123.2,0.00020821,2]
[321963704,1712652643239,-500.0,0.00020821,2]
[321963706,1712652643248,-779.02,0.00020821,2]
[321963708,1712652643257,-604.71,0.00020821,2]
[321963710,1712652643268,-551.99,0.00020821,2]
[321963713,1712652643277,-500.0,0.00020821,2]
[321963716,1712652643286,-551.17,0.00020821,2]
[321963718,1712652643295,-500.0,0.00020821,2]